bitfinex/quotes_ETHUSD_20260302
["timestamp","ask_amount","ask_price","bid_price","bid_amount"]
[1772484422328,0.48234198,2048.4,2047.0,0.45191597]
[1772484423205,0.48234198,2048.0,2046.4,0.45191597]
[1772484423408,1.22088196,2047.7,2046.4,0.45191597]
[1772484423612,1.253,2047.6,2046.5,0.45191597]
[1772484423818,1.22088196,2047.7,2046.5,0.45191597]
[1772484423998,1.496,2047.6,2046.5,0.45191597]
[1772484424445,1.22088196,2047.7,2046.5,0.45191597]
[1772484424600,2.71688196,2047.7,2046.5,0.45191597]
[1772484425097,1.22088196,2047.7,2046.5,0.45191597]
[1772484426738,1.22088196,2047.7,2046.6,1.67345413]
[1772484426919,1.22088196,2047.7,2046.7,0.45291597]
[1772484427527,1.70322394,2047.7,2046.7,0.001]
[1772484428646,1.65322394,2047.7,2046.7,0.001]
[1772484430147,0.48234198,2047.6,2046.7,0.001]
[1772484430919,1.22100122,2047.5,2046.7,0.001]
[1772484432037,2.86974597,2047.4,2046.0,1.22184359]
[1772484432251,1.492,2047.3,2046.1,0.45191597]
[1772484432626,1.97434198,2047.3,2046.0,0.13725209]
[1772484432821,1.22129946,2047.0,2046.0,0.13725209]
[1772484433251,1.70364144,2047.0,2046.0,0.13725209]
[1772484433463,0.48234198,2046.9,2045.7,0.13825209]
[1772484433683,0.48234198,2046.9,2045.8,0.13725209]
[1772484433684,1.491,2046.8,2045.8,0.13725209]
[1772484434175,1.22129946,2047.0,2046.0,0.13725209]
[1772484434352,1.49,2046.9,2046.0,0.13725209]
[1772484435696,1.2214188,2046.8,2046.1,0.13725209]
[1772484435853,1.489,2047.4,2046.6,0.13725209]
[1772484436748,1.489,2047.4,2046.2,0.13725209]
[1772484437689,1.22100122,2047.5,2046.7,0.13725209]
[1772484439978,4.88400488,2047.6,2046.7,0.13725209]
[1772484440187,4.88400488,2047.6,2046.3,2.38740399]
[1772484440188,5.37185257,2047.6,2046.4,0.13725209]
[1772484440569,0.48784769,2047.5,2046.4,0.13725209]
[1772484440782,0.48784769,2047.4,2046.4,0.13725209]
[1772484441399,0.48784769,2047.4,2046.4,0.13825209]
[1772484441577,0.002,2047.2,2046.4,0.13825209]
[1772484441898,1.486,2047.1,2046.4,0.13825209]
[1772484442063,4.0966108,2046.9,2046.2,0.001]
[1772484442489,2.87525168,2046.6,2045.7,0.001]
[1772484442690,1.97384769,2046.5,2045.7,0.001]
[1772484442903,1.486,2046.6,2045.7,1.22307065]
[1772484443062,1.486,2046.6,2045.7,0.13825209]
[1772484443462,1.486,2046.6,2045.7,0.001]
[1772484443984,1.97384769,2046.6,2045.7,0.001]
[1772484444197,1.70944553,2046.5,2045.7,0.001]
[1772484444822,1.22159784,2046.5,2045.8,0.13725209]
[1772484445298,1.2214188,2046.8,2045.8,0.13725209]
[1772484445501,1.2212398,2047.1,2046.3,2.52465608]
[1772484445699,6.37095921,2047.2,2046.6,2.38740399]
[1772484445700,2.70721489,2047.2,2046.6,2.38740399]
[1772484445998,2.70721489,2047.2,2046.4,0.13725209]
[1772484446196,2.70721489,2047.2,2046.4,1.35889977]
[1772484446368,2.70721489,2047.2,2046.4,1.35890709]
[1772484446563,2.70721489,2047.2,2046.2,2.25059427]
[1772484446769,0.48784769,2047.1,2046.0,0.13725209]
[1772484446970,0.48784769,2047.1,2046.0,1.359135]
[1772484447169,0.48784769,2047.1,2046.0,0.13725209]
[1772484447410,0.48784769,2047.1,2046.0,1.35914148]
[1772484447975,0.48784769,2047.1,2045.9,1.22194845]
[1772484448195,0.48784769,2047.1,2045.7,0.13825209]
[1772484448196,1.22129946,2047.0,2045.8,1.22201583]
[1772484448378,0.48784769,2046.9,2045.7,0.13825209]
[1772484448605,0.48784769,2046.9,2045.7,1.36031984]
[1772484449009,0.48784769,2046.9,2045.8,0.13725209]
[1772484449643,0.48784769,2046.5,2045.7,0.001]
[1772484449934,1.485,2046.4,2045.7,0.001]
[1772484450231,1.22177695,2046.2,2045.7,0.001]
[1772484451614,1.22177695,2046.2,2045.7,0.13825209]
[1772484451994,1.22172967,2046.3,2045.7,0.13825209]
[1772484452502,1.22172967,2046.3,2045.7,0.001]
[1772484453724,1.22172967,2046.3,2045.1,0.13725209]
[1772484453725,2.38740399,2046.1,2045.1,0.13725209]
[1772484454223,0.48784769,2046.2,2045.1,0.13725209]
[1772484454527,1.22183666,2046.1,2045.1,0.13725209]
[1772484455107,1.70968435,2046.1,2045.1,0.13725209]
[1772484455307,1.70968435,2046.1,2045.1,1.35966771]
[1772484455617,1.70968435,2046.1,2045.1,0.13725209]
[1772484455816,1.70968435,2046.1,2045.9,0.001]
[1772484456134,1.70968435,2046.1,2045.7,0.001]
[1772484456625,1.22183666,2046.1,2045.7,0.001]
[1772484458030,1.488,2046.0,2045.7,0.001]
[1772484458511,1.2219561,2045.9,2045.7,0.001]
[1772484462099,1.495,2046.5,2045.7,0.001]
[1772484463500,1.22165754,2046.4,2045.7,0.001]
[1772484464129,0.002,2047.2,2045.7,0.001]
[1772484464353,2.0132398,2047.1,2045.9,2.38740399]
[1772484464756,2.5132398,2047.1,2045.9,2.38740399]
[1772484465563,1.497,2047.0,2046.0,1.22189638]
[1772484465735,1.497,2047.0,2046.0,3.60930037]
[1772484466075,1.497,2047.0,2045.7,0.001]
[1772484466076,0.5,2046.7,2045.7,0.001]
[1772484466528,1.499,2046.6,2045.7,0.001]
[1772484466732,1.999,2046.6,2045.7,0.001]
[1772484467157,1.999,2046.6,2045.7,1.2230578]
[1772484467373,1.498,2046.5,2045.7,1.2230578]
[1772484467563,2.71962042,2046.5,2045.9,2.38740399]
[1772484467965,2.7194188,2046.8,2045.9,2.38740399]
[1772484468837,0.002,2046.3,2046.2,2.38740399]
[1772484469045,2.7194188,2046.8,2046.2,2.38740399]
[1772484469260,0.002,2046.5,2046.2,2.38740399]
[1772484469568,0.002,2046.5,2046.2,3.60913765]
[1772484470660,0.002,2046.5,2046.2,2.38740399]
[1772484471173,0.002,2046.5,2046.2,3.60918064]
[1772484471653,0.002,2046.5,2046.1,1.22178888]
[1772484471854,0.002,2046.5,2046.0,1.22184828]
[1772484472260,0.002,2046.5,2045.9,3.60931873]
[1772484473082,0.002,2046.5,2045.9,1.22191474]
[1772484474175,0.002,2046.5,2045.8,4.88796825]
[1772484475078,0.002,2046.5,2045.7,1.22303117]
[1772484475955,0.002,2046.5,2045.8,2.38740399]
[1772484476158,0.002,2046.5,2045.9,1.2219561]
[1772484476564,1.491,2046.6,2046.1,2.38740399]
[1772484477264,1.491,2046.6,2045.9,1.2219561]
[1772484477657,0.002,2046.8,2045.9,1.2219561]
[1772484477858,0.002,2046.8,2046.0,2.38740399]
[1772484478062,0.002,2046.8,2046.2,1.22177695]
[1772484479577,0.002,2046.8,2046.1,2.11334218]
[1772484480270,0.002,2046.8,2046.0,1.22185579]
[1772484482585,1.2234188,2046.8,2045.9,0.001]
[1772484482987,0.002,2046.6,2046.2,2.38740399]
[1772484483381,0.002,2046.6,2045.9,2.38840399]
[1772484484279,0.502,2046.6,2045.9,0.001]
[1772484484796,1.72159784,2046.5,2045.9,0.001]
[1772484485298,0.002,2046.6,2045.9,3.34636583]
[1772484485500,1.22354672,2046.6,2045.9,3.34636583]
[1772484486505,1.22354672,2046.6,2045.9,0.001]
[1772484486808,0.002,2046.6,2045.9,0.001]
[1772484487207,0.502,2046.6,2045.9,0.001]
[1772484488797,1.483,2046.5,2045.9,0.001]
[1772484488996,1.22165754,2046.4,2045.9,0.001]
[1772484489393,1.483,2046.4,2045.9,0.001]
[1772484489593,0.002,2046.6,2046.0,3.34536583]
[1772484491412,0.002,2046.6,2046.1,1.22183666]
[1772484494241,0.002,2046.6,2045.9,1.22291825]
[1772484494401,0.502,2046.6,2045.9,1.22294107]
[1772484494923,0.002,2046.6,2045.9,1.22294107]
[1772484495438,0.002,2046.6,2045.9,4.5683069]
[1772484495933,0.002,2046.6,2046.2,3.34536583]
[1772484496507,0.002,2046.6,2046.2,3.34636583]
[1772484498314,0.002,2046.6,2046.3,1.22171724]
[1772484498644,1.478,2046.7,2046.3,1.22171724]
[1772484500635,0.002,2046.8,2046.3,1.22171724]
[1772484501253,1.22343153,2046.8,2046.3,1.22171724]
[1772484501540,0.002,2046.8,2046.3,1.22171724]
[1772484501941,1.22341921,2046.8,2046.3,1.22171724]
[1772484502150,0.002,2046.8,2046.3,1.22171724]
[1772484502463,1.22107364,2047.4,2046.6,1.22153816]
[1772484502620,2.62872862,2047.9,2046.8,3.34536583]
[1772484502621,3.19482234,2047.8,2046.8,3.34536583]
[1772484503765,0.5,2047.7,2046.6,1.22153816]
[1772484503934,0.5,2047.7,2046.6,4.56690399]
[1772484504759,2.6949181,2047.7,2047.0,3.34536583]
[1772484505132,0.5,2047.6,2046.6,1.22153816]
[1772484507365,1.72100122,2047.5,2046.6,1.22153816]
[1772484508054,0.5,2047.2,2046.2,0.001]
[1772484508265,1.22100122,2047.5,2046.2,0.001]
[1772484508266,0.5,2047.0,2046.2,0.001]
[1772484508574,0.5,2047.0,2046.0,0.001]
[1772484509357,0.5,2047.0,2046.0,3.34636583]
[1772484509358,2.69735912,2046.9,2046.0,3.34636583]
[1772484509866,2.69735912,2046.9,2046.2,0.001]
[1772484510067,0.002,2046.8,2046.2,0.001]
[1772484510467,0.502,2046.8,2046.2,0.001]
[1772484511684,1.22147847,2046.7,2046.2,0.001]
[1772484512562,0.5,2046.6,2046.2,0.001]
[1772484512760,0.5,2046.6,2046.0,0.001]
[1772484513584,1.22159784,2046.5,2046.0,0.001]
[1772484513790,1.475,2046.4,2046.0,0.001]
[1772484514362,1.9745,2046.4,2046.0,0.001]
[1772484514882,0.4995,2046.3,2046.0,0.001]
[1772484515591,1.476,2046.2,2046.0,0.001]
[1772484515791,1.22183666,2046.1,2046.0,0.001]
[1772484516900,1.22183666,2046.1,2045.7,0.001]
[1772484516901,1.72133666,2046.1,2045.7,0.001]
[1772484517095,2.69781697,2046.2,2045.7,0.001]
[1772484518783,1.476,2046.2,2045.7,0.001]
[1772484518985,5.38617781,2046.4,2045.7,0.001]
[1772484518986,2.69970382,2046.4,2045.8,3.34536583]
[1772484520206,2.69970382,2046.4,2045.7,0.001]
[1772484520402,3.19920382,2046.4,2045.7,0.001]
[1772484520809,0.002,2046.8,2045.8,0.001]
[1772484520810,1.478,2046.7,2045.8,0.001]
[1772484521037,1.72293084,2046.8,2046.3,0.001]
[1772484521038,0.001,2046.8,2046.3,0.001]
[1772484521310,1.72092881,2047.7,2046.5,3.34536583]
[1772484521500,2.0119458,2047.6,2046.5,3.34536583]
[1772484522080,2.5119458,2047.6,2046.5,3.34536583]
[1772484522309,2.5119458,2047.6,2046.6,1.22153816]
[1772484525004,0.002,2046.9,2046.6,1.22153816]
[1772484525923,1.22080202,2047.9,2046.8,3.34536583]
[1772484526123,1.72080202,2047.9,2046.7,0.065536]
[1772484526325,0.5,2048.1,2047.0,3.34536583]
[1772484526528,1.22070312,2048.0,2047.1,1.2212398]
[1772484526833,0.5,2047.9,2047.1,1.2212398]
[1772484527221,0.5,2047.7,2046.8,1.92141517]
[1772484527569,1.22070312,2048.0,2047.0,3.34536583]
[1772484527706,0.5,2047.9,2047.0,3.34536583]
[1772484528217,1.22070312,2048.0,2047.0,3.34536583]
[1772484528620,5.38278851,2048.1,2047.1,1.2212398]
[1772484528930,0.5,2048.0,2046.8,0.065536]
[1772484529106,0.5,2048.0,2046.7,1.22147847]
[1772484529639,0.5,2047.8,2046.7,1.22147847]
[1772484529807,0.5,2047.6,2046.7,1.22147847]
[1772484530931,1.72100122,2047.5,2046.6,4.88608502]
[1772484531436,1.72100122,2047.5,2046.5,1.28707416]
[1772484531642,1.72100122,2047.5,2046.3,9.65616151]
[1772484531643,0.5,2047.4,2046.4,1.22165754]
[1772484531820,0.5,2047.4,2046.3,0.065536]
[1772484532336,0.5,2047.4,2046.2,4.8869321]
[1772484532543,0.5,2047.4,2046.2,1.22177695]
[1772484532912,0.5,2047.2,2046.2,1.22177695]
[1772484533128,0.5,2047.0,2046.2,1.22177695]
[1772484533329,0.5,2047.0,2046.0,1.28840447]
[1772484533508,0.5,2047.0,2046.0,4.6337703]
[1772484533707,1.22107051,2047.4,2046.3,3.34536583]
[1772484534447,6.36224343,2047.5,2046.2,2.11334218]
[1772484534448,1.22104173,2047.5,2046.6,3.34536583]
[1772484534646,1.478,2047.6,2046.6,3.34536583]
[1772484535136,1.478,2047.6,2046.7,1.22147847]
[1772484535328,3.19896587,2047.6,2046.7,1.22147847]
[1772484535725,0.5,2047.5,2046.7,1.22147847]
[1772484536242,0.5,2047.5,2046.9,0.001]
[1772484537140,1.22106085,2047.4,2046.9,0.001]
[1772484537943,1.72106085,2047.4,2046.9,0.001]
[1772484539444,0.5,2047.3,2046.9,0.001]
[1772484541444,0.4995,2047.1,2046.7,0.001]
[1772484541645,1.477,2047.0,2046.7,0.001]
[1772484541943,1.22118014,2047.2,2046.7,0.001]
[1772484541944,1.477,2047.2,2046.7,0.001]
[1772484542441,0.4995,2047.1,2046.7,0.001]
[1772484542852,1.477,2047.2,2046.7,0.001]
[1772484543026,1.9765,2047.2,2046.7,0.001]
[1772484543228,1.477,2047.2,2046.7,0.001]
[1772484543434,1.22115451,2047.3,2046.7,0.001]
[1772484543638,4.88378617,2047.6,2046.8,0.001]
[1772484543639,2.69796254,2047.6,2046.8,0.001]
[1772484544768,0.002,2047.7,2047.3,0.001]
[1772484544974,1.22061119,2048.2,2047.3,0.001]
[1772484545138,1.22054824,2048.3,2047.5,2.38723173]
[1772484545343,2.69847748,2048.4,2047.7,0.001]
[1772484545536,2.69847774,2048.4,2047.7,0.001]
[1772484546695,0.4995,2048.3,2047.4,1.22101453]
[1772484546893,0.4995,2048.3,2047.3,1.22109262]
[1772484547262,0.4995,2048.1,2047.0,4.88498085]
[1772484547497,0.4995,2048.1,2047.0,4.88598085]
[1772484548266,0.4995,2048.1,2047.0,1.22229946]
[1772484549490,0.4995,2047.9,2046.8,4.88556069]
[1772484549691,0.4995,2047.7,2046.7,0.001]
[1772484549894,0.4995,2047.7,2046.7,1.22247499]
[1772484550591,0.4995,2047.7,2046.9,0.001]
[1772484551591,1.22094159,2047.6,2046.9,0.001]
[1772484551889,2.69694159,2047.6,2046.9,0.001]
[1772484552874,1.476,2047.6,2046.9,0.001]
[1772484554293,1.22100122,2047.5,2046.9,0.001]
[1772484555227,0.4995,2047.4,2046.9,0.001]
[1772484555440,1.22100122,2047.5,2046.9,0.001]
[1772484556914,0.4995,2047.4,2046.9,0.001]
[1772484557925,0.4995,2047.4,2046.7,0.001]
[1772484558344,0.499,2047.2,2046.7,0.001]
[1772484558511,2.69710673,2047.4,2046.7,0.003]
[1772484558830,2.69710673,2047.4,2046.8,0.002]
[1772484560164,1.476,2047.4,2046.8,0.002]
[1772484560428,2.69706621,2047.4,2046.8,0.002]
[1772484560804,2.69706621,2047.4,2046.7,1.22247847]
[1772484562353,2.69706621,2047.4,2046.7,0.001]
[1772484562669,0.499,2047.3,2046.7,0.001]
[1772484563034,2.69706621,2047.4,2046.7,0.001]
[1772484563357,3.19606621,2047.4,2046.7,0.001]
[1772484563931,1.476,2047.4,2046.9,0.001]
[1772484564145,0.002,2047.2,2046.9,0.001]
[1772484569063,0.002,2047.2,2046.9,0.003]
[1772484569280,0.002,2047.2,2046.9,0.001]
[1772484571267,0.499,2047.1,2046.4,1.22265603]
[1772484571473,0.499,2047.1,2046.5,0.001]
[1772484571474,1.48,2047.1,2046.5,0.001]
[1772484574003,1.22129946,2047.0,2046.5,0.001]
[1772484576090,1.71979946,2047.0,2046.5,0.001]
[1772484576291,0.4985,2046.9,2046.5,0.001]
[1772484576497,0.4985,2046.9,2046.4,0.001]
[1772484576913,0.498,2046.8,2046.0,0.001]
[1772484577078,0.498,2046.6,2046.1,0.001]
[1772484577695,1.481,2046.7,2046.1,0.001]
[1772484578083,1.22153816,2046.6,2046.4,0.001]
[1772484582312,4.88746791,2046.9,2046.4,0.001]
[1772484582313,1.93699043,2046.8,2046.4,0.001]
[1772484582612,0.002,2046.9,2046.4,0.47076817]
[1772484583699,1.22337711,2046.9,2046.4,0.47076817]
[1772484584024,1.67436754,2046.9,2046.4,0.002]
[1772484584308,1.6724689,2046.7,2046.4,0.002]
[1772484584493,1.22147847,2046.7,2046.4,0.002]
[1772484585083,1.486,2046.8,2046.4,0.002]
[1772484585280,2.70742379,2046.8,2046.4,0.002]
[1772484585511,1.486,2046.8,2046.4,0.002]
[1772484586912,1.22336824,2046.9,2046.4,0.002]
[1772484587111,0.002,2046.9,2046.4,0.002]
[1772484587681,1.22336661,2046.9,2046.4,0.002]
[1772484587883,0.002,2046.9,2046.4,0.002]
[1772484588411,0.002,2046.9,2046.4,1.71870846]
[1772484590834,0.002,2047.1,2046.6,0.49505092]
[1772484591013,0.001,2047.1,2046.6,0.49505092]
[1772484592119,0.001,2047.1,2046.6,0.49605092]
[1772484592645,0.001,2047.1,2046.7,1.22147847]
[1772484592810,0.002,2046.9,2046.7,1.71652939]
[1772484593012,0.001,2047.1,2046.7,1.71652939]
[1772484593524,0.001,2047.1,2046.7,1.22147847]
[1772484594614,0.001,2047.1,2046.6,5.38196483]
[1772484595541,0.001,2047.1,2046.7,0.49505092]
[1772484597232,0.001,2047.1,2046.8,1.2214188]
[1772484597757,0.001,2047.1,2046.8,1.71646972]
[1772484598113,0.001,2047.1,2046.8,1.2214188]
[1772484598445,0.001,2047.1,2046.8,1.71646972]
[1772484599665,0.001,2047.1,2046.8,1.2214188]
[1772484599886,0.001,2047.1,2046.6,0.001]
[1772484599887,0.45977971,2047.1,2046.6,0.001]
[1772484600040,0.45977971,2047.1,2046.6,1.22252377]
[1772484600367,1.22043095,2048.5,2047.0,0.49505092]
[1772484600601,0.45877971,2048.4,2047.6,0.49505092]
[1772484601090,0.45877971,2048.2,2047.3,1.415]
[1772484601377,0.45877971,2047.9,2047.1,1.71629072]
[1772484601562,0.45877971,2047.9,2047.2,0.49505092]
[1772484601878,0.45877971,2047.9,2047.0,1.415]
[1772484602050,0.45877971,2047.7,2047.0,1.415]
[1772484602364,0.45877971,2047.7,2046.7,0.49505092]
[1772484602584,0.45877971,2047.1,2046.6,0.001]
[1772484602761,0.45877971,2046.9,2046.6,0.001]
[1772484603145,0.45877971,2046.8,2046.4,0.001]
[1772484603450,0.45877971,2046.8,2045.5,0.001]
[1772484603451,0.45877971,2046.4,2045.5,0.001]
[1772484603766,0.45877971,2045.8,2045.5,0.001]
[1772484604139,0.45877971,2045.6,2045.2,0.001]
[1772484604351,0.45877971,2045.6,2044.5,0.792]
[1772484604672,0.45877971,2045.6,2044.6,0.002]
[1772484605047,0.45877971,2045.5,2044.6,0.002]
[1772484605272,0.45877971,2045.2,2044.6,0.002]
[1772484605573,0.45877971,2044.9,2044.3,0.001]
[1772484605882,7.91999761,2045.4,2044.3,0.001]
[1772484605883,0.45877971,2045.2,2044.3,0.001]
[1772484606167,1.485,2045.0,2044.3,0.001]
[1772484606368,0.45877971,2045.2,2044.3,0.001]
[1772484606596,1.485,2045.1,2044.3,0.001]
[1772484607359,4.88901926,2045.5,2044.3,0.49605092]
[1772484607360,5.34772184,2045.5,2044.3,0.49605092]
[1772484607698,2.70692681,2046.0,2044.9,0.49505092]
[1772484607876,1.485,2046.0,2044.9,0.49505092]
[1772484608771,2.67400889,2046.4,2044.8,3.3488714]
[1772484608772,1.94377971,2046.3,2045.2,0.49505092]
[1772484609096,1.22349598,2046.7,2045.7,0.49505092]
[1772484609258,1.68227569,2046.7,2045.4,0.14948499]
[1772484609463,1.68227569,2046.7,2045.5,1.22219506]
[1772484610067,2.70950118,2046.7,2045.7,0.49505092]
[1772484610260,0.002,2046.7,2045.7,0.49505092]
[1772484610486,1.22348084,2046.7,2045.7,0.49505092]
[1772484610864,0.002,2046.7,2045.7,0.49505092]
[1772484611295,0.002,2046.7,2045.9,0.49505092]
[1772484611466,0.002,2046.7,2046.0,1.7169473]
[1772484611798,0.002,2046.7,2046.0,1.22189638]
[1772484612497,0.002,2046.7,2045.8,4.88805707]
[1772484612688,0.002,2046.7,2045.6,2.64009353]
[1772484612689,0.45877971,2046.5,2045.6,2.64009353]
[1772484612872,0.45877971,2046.5,2045.6,1.22212595]
[1772484613404,0.45877971,2046.5,2045.3,5.38428908]
[1772484613405,1.68043725,2046.4,2045.4,1.22225481]
[1772484613566,0.45877971,2046.2,2045.2,1.22234438]
[1772484614178,0.45877971,2046.2,2045.1,1.22238838]
[1772484614698,0.45877971,2046.2,2045.1,1.7174393]
[1772484614699,1.94377971,2046.2,2045.1,1.7174393]
[1772484614866,1.94377971,2046.2,2045.2,0.49505092]
[1772484615068,8.23550157,2046.6,2045.1,4.57125978]
[1772484615069,1.94377971,2046.6,2045.4,0.49505092]
[1772484615299,0.002,2046.7,2045.8,0.49505092]
[1772484615468,0.002,2046.7,2046.1,0.49505092]
[1772484615669,0.002,2047.2,2046.3,3.84392232]
[1772484615902,0.002,2047.2,2045.8,4.88782442]
[1772484615903,0.45877971,2046.8,2045.6,1.22213531]
[1772484616081,5.03083582,2047.2,2045.7,0.49505092]
[1772484616282,1.484,2047.1,2045.7,0.49505092]
[1772484616477,0.47758649,2047.0,2045.7,0.49505092]
[1772484617509,0.48374167,2046.8,2045.8,1.22201583]
[1772484617822,0.48374167,2046.6,2045.5,1.22219506]
[1772484618110,3.83261307,2046.4,2045.4,0.001]
[1772484618274,0.48374167,2046.3,2045.4,0.001]
[1772484619280,0.48374167,2046.3,2045.4,1.22324998]
[1772484619609,1.22177695,2046.2,2045.4,0.001]
[1772484619901,3.83261307,2046.0,2045.4,0.001]
[1772484620205,0.48374167,2046.0,2045.4,0.001]
[1772484620503,1.22177695,2046.2,2045.4,0.001]
[1772484621018,1.70551862,2046.2,2045.4,0.001]
[1772484621380,1.22153816,2046.6,2045.6,0.46001922]
[1772484623510,1.22153816,2046.6,2045.7,1.22207557]
[1772484624712,0.48374167,2046.5,2045.5,1.2221506]
[1772484624916,0.48374167,2046.5,2045.4,1.22321135]
[1772484625092,0.48374167,2046.5,2045.4,1.68323057]
[1772484625291,0.48374167,2046.5,2045.6,0.7]
[1772484626015,1.22163708,2046.5,2045.7,1.68209479]
[1772484627315,1.22352514,2046.7,2045.8,0.46001922]
[1772484627613,1.22348497,2046.7,2045.8,0.46001922]
[1772484628612,1.22348497,2046.7,2046.0,0.46001922]
[1772484628613,0.002,2046.7,2046.0,0.46001922]
[1772484630528,0.002,2046.7,2046.1,1.22183666]
[1772484635151,0.48574167,2046.7,2045.8,1.22201583]
[1772484635457,0.48374167,2046.6,2045.8,1.22201583]
[1772484635647,0.48374167,2046.5,2045.7,1.22307327]
[1772484636663,1.476,2046.7,2045.7,1.22307327]
[1772484637038,0.002,2046.7,2045.8,0.46001922]
[1772484637238,0.002,2046.7,2045.9,1.68197532]
[1772484637573,0.48574167,2046.7,2045.8,1.22197499]
[1772484637775,0.48574167,2046.7,2045.7,1.22303161]
[1772484638842,0.48574167,2046.7,2045.8,0.46001922]
[1772484639169,0.002,2046.7,2045.8,0.46001922]
[1772484639374,0.48574167,2046.7,2045.9,1.2219561]
[1772484639946,0.002,2046.7,2046.0,0.46001922]
[1772484640675,0.002,2046.7,2045.9,1.2219561]
[1772484641082,0.48574167,2046.7,2045.8,1.22198514]
[1772484641241,0.002,2046.7,2046.0,1.22189638]
[1772484641442,0.002,2046.7,2046.0,1.6819156]
[1772484642053,0.002,2046.7,2046.2,0.001]
[1772484644595,0.48574167,2046.7,2046.2,0.001]
[1772484644776,0.48574167,2046.7,2046.0,0.001]
[1772484645466,1.70527983,2046.6,2046.0,0.001]
[1772484648402,0.45336386,2046.4,2046.0,0.001]
[1772484648977,1.469,2046.5,2046.0,0.001]
[1772484649198,1.92236386,2046.5,2046.0,0.001]
[1772484649410,1.22153816,2046.6,2046.0,0.001]
[1772484650303,0.45336386,2046.5,2046.0,0.001]
[1772484650672,3.80223526,2046.3,2045.7,0.001]
[1772484650875,0.45336386,2046.2,2045.7,0.001]
[1772484652317,1.22183666,2046.1,2045.7,0.001]
[1772484652808,5.34071051,2046.2,2045.7,0.001]
[1772484652809,1.22181232,2046.2,2045.7,0.001]
[1772484653188,2.69175695,2046.3,2045.7,0.001]
[1772484653815,3.14512081,2046.3,2045.9,0.001]
[1772484654131,0.45336386,2046.2,2045.5,0.001]
[1772484654408,1.67520052,2046.1,2045.5,0.001]
[1772484655211,1.22181959,2046.2,2045.5,0.4856091]
[1772484655430,1.67518345,2046.2,2045.5,0.001]
[1772484655821,0.45336386,2046.1,2045.5,0.001]
[1772484656186,1.22189638,2046.0,2045.5,0.001]
[1772484657289,0.45336386,2045.7,2045.2,0.001]
[1772484657499,1.92436386,2045.7,2045.2,0.001]
[1772484658305,1.22213531,2045.6,2045.2,0.001]
[1772484658696,3.3488714,2045.8,2045.2,0.4856091]
[1772484658697,2.69403826,2045.8,2045.2,0.4856091]
[1772484659108,0.45336386,2045.7,2045.2,0.001]
[1772484659324,0.45336386,2045.7,2044.9,0.001]
[1772484659533,6.04290966,2045.8,2044.9,0.001]
[1772484659534,0.45336386,2045.4,2044.9,0.001]
[1772484659732,1.92636386,2045.4,2044.9,0.001]
[1772484660041,1.473,2045.4,2044.9,0.001]
[1772484660461,1.22231457,2045.3,2044.9,0.001]
[1772484660671,3.3488714,2046.0,2044.9,0.001]
[1772484660672,4.88699357,2046.3,2045.3,0.4846091]
[1772484660955,0.45336386,2046.0,2045.0,0.4846091]
[1772484662142,0.45336386,2045.7,2044.9,0.001]
[1772484662337,0.45336386,2045.6,2044.9,0.001]
[1772484662541,0.45336386,2045.5,2044.9,0.001]
[1772484663160,0.45336386,2045.3,2044.4,0.4846091]
[1772484663463,3.3488714,2045.4,2044.3,0.001]
[1772484663464,0.45336386,2045.0,2044.3,0.001]
[1772484664162,3.80223526,2044.8,2044.3,0.001]
[1772484664347,1.22273305,2044.6,2044.3,0.001]
[1772484665529,3.3488714,2044.5,2044.0,0.001]
[1772484665720,1.67609691,2044.6,2044.0,0.001]
[1772484666124,1.67609691,2044.6,2043.5,1.70899663]
[1772484666125,3.80223526,2044.4,2043.5,1.70899663]
[1772484666337,1.22291248,2044.3,2043.5,0.4856091]
[1772484666554,3.86941672,2044.2,2043.5,0.001]
[1772484666770,0.45336386,2044.1,2043.5,0.001]
[1772484667657,2.39541672,2044.0,2043.5,0.001]
[1772484668575,1.22315181,2043.9,2043.5,0.001]
[1772484668877,1.22315181,2043.9,2043.3,0.32883013]
[1772484669279,1.475,2043.8,2043.3,0.32883013]
[1772484669775,1.475,2043.8,2043.3,0.001]
[1772484670668,1.22327151,2043.7,2043.0,0.001]
[1772484671071,0.45336386,2043.5,2043.0,0.001]
[1772484671277,2.39541672,2043.3,2042.7,0.001]
[1772484671460,2.84878058,2043.3,2042.7,0.001]
[1772484671961,2.39541672,2043.0,2042.3,0.4846091]
[1772484672164,3.87141672,2043.0,2042.3,1.70870858]
[1772484672383,1.476,2043.0,2042.4,0.4846091]
[1772484672684,1.22375055,2042.9,2042.4,0.4846091]
[1772484672991,1.22375055,2042.9,2042.4,1.70865661]
[1772484673180,1.22375055,2042.9,2042.4,0.4846091]
[1772484673388,1.22375055,2042.9,2042.3,1.22406422]
[1772484673576,1.67711441,2042.9,2042.0,1.70886897]
[1772484673974,4.8950022,2043.2,2042.2,0.4846091]
[1772484673975,0.45336386,2043.2,2042.2,0.4846091]
[1772484674391,2.84878058,2043.0,2042.0,1.22425987]
[1772484674694,1.22361738,2043.2,2042.3,0.4846091]
[1772484674876,1.476,2043.1,2042.3,0.4846091]
[1772484675503,1.475,2043.4,2042.6,0.4846091]
[1772484675801,1.475,2043.4,2042.2,1.22417001]
[1772484675802,2.84878058,2043.3,2042.3,0.4846091]
[1772484676104,0.45336386,2043.3,2042.3,0.4846091]
[1772484676809,1.22357086,2043.2,2042.3,1.70867506]
[1772484677300,1.71434667,2043.2,2042.3,1.70867506]
[1772484678087,1.71434667,2043.2,2042.4,0.001]
[1772484678987,0.47006375,2043.1,2042.4,0.001]
[1772484680411,4.89428347,2043.5,2042.4,0.48799813]
[1772484680412,1.69345499,2043.5,2042.4,0.48799813]
[1772484680583,1.475,2043.4,2042.4,0.48799813]